{"text_format":"1","workbook":"xlsx","n_sheets":4,"sheets":["Prorrogação Reabertura","Prorrogação Quebra Faturação","Auxiliar","Alerta"],"not_rendered":{"charts":0,"images":2,"macros":1,"external_links":0,"defined_names":4,"comments":0,"pivot_tables":0},"unopened":[],"bounds":{"document_bytes":16777216,"sheet_cells":100000,"rows_first":2000,"rows_last":500,"rows_between":2000,"halvings":0,"cell_chars":16384,"cell_head_chars":4096},"cells_cut":0,"cells_raw":0,"read":"whole","date_system":"1900"}

{"sheet":"Prorrogação Reabertura","index":0,"n_rows":60,"n_cols":26,"rows_kept":60,"cut":false,"hidden":true,"merged":[[46,7,48,7],[46,9,48,9],[7,1,8,19],[50,1,50,5],[57,1,57,19],[55,1,55,19],[43,7,45,9],[43,14,45,16],[38,1,38,5],[0,1,0,19],[46,18,48,18],[27,1,27,2],[29,1,29,2],[31,1,31,2],[33,1,33,2],[35,1,35,2],[36,1,36,17],[39,1,39,5],[41,1,41,2],[46,16,48,16],[42,1,42,19],[46,14,48,14],[9,5,9,9],[9,14,9,18],[1,1,2,19],[59,1,59,19],[25,1,25,2],[4,2,4,9],[5,2,5,9],[10,1,10,2],[12,1,12,2],[14,1,14,2],[16,1,16,2],[20,1,20,2],[23,1,23,2],[12,11,12,12],[14,11,14,12],[16,11,16,12],[20,11,20,12],[52,6,52,10],[52,16,52,17]]}
[null,null,null,null,null,null,null,null,null,null,null,null,null,null,null,null,null,null,null,null,null,"3 meses","Mensal","Julho a Setembro","TCO / MOE","N"]
[null,"Prorrogação Reabertura",null,null,null,null,null,null,null,null,null,null,null,null,null,null,null,null,null,null,null,"6 meses","Trimestral","Julho a Dezembro","TI","D"]
[]
[]
[null,"Nome:","Nome da Empresa"]
[null,"NIF:","NIF da Empresa"]
[]
[null,"Dados para simulação"]
[]
[null,null,null,null,null,"Reabertura",null,null,null,null,null,null,null,null,"Prorrogação"]
[null,null,null,null,null,"Início",null,"Termo",null,"Faturação",null,null,null,null,"Início",null,"Termo",null,"Faturação"]
[]
[null,"Reabertura",null,null,null,"2020-03-16",null,{"$f":"IFERROR(F13+29,\"\")","v":"2020-04-14"},null,null,null,"Pedido Inicial",null,null,"2020-03-16",null,{"$f":"IFERROR(O13+29,\"\")","v":"2020-04-14"}]
[]
[null,"30 dias anteriores",null,null,null,{"$f":"IFERROR(F13-30,\"\")","v":"2020-02-15"},null,{"$f":"IFERROR(F15+29,\"\")","v":"2020-03-15"},null,0,null,"30 dias anteriores",null,null,{"$f":"IFERROR(O13-30,\"\")","v":"2020-02-15"},null,{"$f":"IFERROR(O15+29,\"\")","v":"2020-03-15"},null,0]
[]
[null,"60 dias anteriores",null,null,null,{"$f":"IFERROR(F13-90,\"\")","v":"2019-12-17"},null,{"$f":"IFERROR(F17+59,\"\")","v":"2020-02-14"},null,0]
[]
[null,"Média mensal dos 60 dias anteriores",null,null,null,null,null,null,null,{"$f":"J17/2","v":0}]
[]
[null,"Período homólogo N-1",null,null,null,{"$f":"IFERROR(F13-396,\"\")","v":"2019-02-14"},null,{"$f":"IFERROR(F13-367,\"\")","v":"2019-03-15"},null,0,null,"Período homólogo N-1",null,null,{"$f":"IFERROR(O13-396,\"\")","v":"2019-02-14"},null,{"$f":"IFERROR(O13-367,\"\")","v":"2019-03-15"},null,0]
[]
[]
[]
[null,null,null,null,null,null,null,null,null,null,null,null,null,null,null,null,null,null,0]
[]
[null,null,null,null,null,null,null,null,null,null,null,null,null,null,null,null,null,null,0]
[]
[null,null,null,null,null,null,null,null,null,null,null,null,null,null,null,null,null,null,0]
[]
[]
[]
[]
[]
[]
[]
[]
[]
[]
[]
[]
[]
[null,"Resultado da simulação"]
[null,null,null,null,null,null,null,"Reabertura",null,null,null,null,null,null,"Prorrogação"]
[]
[]
[null,null,null,null,null,null,null,"Comparação com média do período de 60 dias",null,"Comparação com período homólogo",null,null,null,null,"Comparação com média do período de 60 dias",null,"Comparação com período homólogo"]
[]
[null,"Apuramento da quebra de faturação"]
[]
[null,"Reabertura",null,null,null,null,null,{"$f":"IFERROR((1-(J15/J19)),\"\")","v":""},null,{"$f":"IFERROR((1-(J15/J21)),\"\")","v":""},null,"Prorrogação",null,null,{"$f":"IFERROR((1-(S15/J19)),\"\")","v":""},null,{"$f":"IFERROR((1-(S15/S21)),\"\")","v":""}]
[]
[null,null,null,null,null,null,"Data de simulação",null,null,null,null,{"$f":"TODAY()","v":"2020-06-25"}]
[]
[]
[null,"A aferição da situação de crise empresarial é efetuada com base em prorrogações continuas do layoff simplificado face ao pedido inicial."]
[]
[null,"A quebra de faturação é apresentada como percentagem positiva."]
[]
[null,"A Ordem não se responsabiliza por valores incorretos apurados, resultantes de erros na introdução de dados ou na interpretação das normas aplicáveis.",null,null,null,null,null,null,null,null,null,null,null,null,null,null,null,null,null,null,"        "]

{"sheet":"Prorrogação Quebra Faturação","index":1,"n_rows":75,"n_cols":25,"rows_kept":75,"cut":false,"hidden":true,"merged":[[72,1,72,16],[70,1,70,16],[74,1,74,16],[37,1,37,2],[9,1,9,2],[13,1,13,2],[15,1,15,2],[33,1,33,2],[35,1,35,2],[11,1,11,2],[65,15,65,16],[52,1,52,16],[65,9,65,14],[39,1,39,2],[41,1,41,2],[43,1,43,2],[45,1,45,2],[0,1,0,16],[1,1,2,16],[4,2,4,9],[5,2,5,9],[7,1,8,16],[17,1,17,5],[19,1,19,3],[25,1,25,3],[31,1,31,3],[65,1,65,5],[65,6,65,8],[46,1,46,16],[48,1,48,5],[49,1,49,5],[51,1,51,2],[53,1,53,2],[55,14,57,14],[55,16,57,16],[55,1,55,9],[61,1,61,5],[63,1,63,5]]}
[null,null,null,null,null,null,null,null,null,null,null,null,null,null,null,null,null,null,null,null,"3 meses","Mensal","Julho a Setembro","TCO / MOE","N"]
[null,"Prorrogação Quebra Faturação",null,null,null,null,null,null,null,null,null,null,null,null,null,null,null,null,null,null,"6 meses","Trimestral","Julho a Dezembro","TI","D"]
[]
[]
[null,"Nome:","Nome da Empresa"]
[null,"NIF:","NIF da Empresa"]
[]
[null,"Dados para simulação"]
[]
[null,null,null,null,null,"Início",null,null,null,"Termo",null,null,null,null,null,null,"Faturação"]
[]
[null,"Pedido Inicial",null,null,null,"2020-03-16",null,null,null,{"$f":"IFERROR(F12+29,\"\")","v":"2020-04-14"}]
[]
[null,"30 dias anteriores",null,null,null,{"$f":"IFERROR(F12-30,\"\")","v":"2020-02-15"},null,null,null,{"$f":"IFERROR(F14+29,\"\")","v":"2020-03-15"},null,null,null,null,null,null,0]
[]
[null,"60 dias anteriores",null,null,null,{"$f":"IFERROR(F12-90,\"\")","v":"2019-12-17"},null,null,null,{"$f":"IFERROR(F16+59,\"\")","v":"2020-02-14"},null,null,null,null,null,null,0]
[]
[null,"Média mensal dos 60 dias anteriores",null,null,null,null,null,null,null,null,null,null,null,null,null,null,{"$f":"Q16/2","v":0}]
[]
[null,"Período homólogo N-1",null,null,null,{"$f":"IFERROR(F12-396,\"\")","v":"2019-02-14"},null,null,null,{"$f":"IFERROR(F12-367,\"\")","v":"2019-03-15"},null,null,null,null,null,null,0]
[]
[null,"1ª Prorrogação",null,null,null,{"$f":"IFERROR(F12+30,\"\")","v":"2020-04-15"},null,null,null,{"$f":"IFERROR(F12+59,\"\")","v":"2020-05-14"}]
[]
[null,"30 dias anteriores",null,null,null,{"$f":"IFERROR(F12,\"\")","v":"2020-03-16"},null,null,null,{"$f":"IFERROR(F12+29,\"\")","v":"2020-04-14"},null,null,null,null,null,null,0]
[]
[null,"Período homólogo N-1 ",null,null,null,{"$f":"IFERROR(F22-396,\"\")","v":"2019-03-16"},null,null,null,{"$f":"IFERROR(F22-367,\"\")","v":"2019-04-14"},null,null,null,null,null,null,0]
[]
[null,"2ª Prorrogação",null,null,null,{"$f":"IFERROR(F12+60,\"\")","v":"2020-05-15"},null,null,null,{"$f":"IFERROR(F12+89,\"\")","v":"2020-06-13"}]
[]
[null,"30 dias anteriores",null,null,null,{"$f":"IFERROR(F12+30,\"\")","v":"2020-04-15"},null,null,null,{"$f":"IFERROR(F12+59,\"\")","v":"2020-05-14"},null,null,null,null,null,null,0]
[]
[null,"Período homólogo N-1 ",null,null,null,{"$f":"IFERROR(F28-396,\"\")","v":"2019-04-15"},null,null,null,{"$f":"IFERROR(F28-367,\"\")","v":"2019-05-14"},null,null,null,null,null,null,0]
[]
[]
[]
[]
[]
[]
[]
[]
[]
[]
[]
[]
[]
[]
[]
[]
[]
[]
[]
[]
[null,"Resultado da simulação"]
[]
[]
[null,null,null,null,null,null,null,null,null,null,null,null,null,null,"Comparação com média do período de 60 dias",null,"Comparação com período homólogo"]
[]
[null,"Apuramento da quebra de faturação"]
[]
[null,"Pedido Inicial",null,null,null,null,null,null,null,null,null,null,null,null,{"$f":"IFERROR((1-(Q14/Q18)),\"\")","v":""},null,{"$f":"IFERROR((1-(Q14/Q20)),\"\")","v":""}]
[]
[null,"1ª Prorrogação",null,null,null,null,null,null,null,null,null,null,null,null,{"$f":"IFERROR((1-(Q24/Q18)),\"\")","v":""},null,{"$f":"IFERROR((1-(Q24/Q26)),\"\")","v":""}]
[]
[null,"2ª Prorrogação",null,null,null,null,null,null,null,null,null,null,null,null,{"$f":"IFERROR((1-(Q30/Q18)),\"\")","v":""},null,{"$f":"IFERROR((1-(Q30/Q32)),\"\")","v":""}]
[]
[null,"Data de simulação",null,null,null,null,null,null,null,{"$f":"TODAY()","v":"2020-06-25"}]
[]
[]
[]
[]
[null,"A aferição da situação de crise empresarial é efetuada com base em prorrogações continuas do layoff simplificado face ao pedido inicial."]
[]
[null,"A quebra de faturação é apresentada como percentagem positiva."]
[]
[null,"A Ordem não se responsabiliza por valores incorretos apurados, resultantes de erros na introdução de dados ou na interpretação das normas aplicáveis.",null,null,null,null,null,null,null,null,null,null,null,null,null,null,null,null,null,"        "]

{"sheet":"Auxiliar","index":2,"n_rows":3,"n_cols":5,"rows_kept":3,"cut":false,"hidden":true,"merged":[]}
["3 meses","Retenção na Fonte","Mensal","Julho a Setembro","TCO / MOE"]
["6 meses","IVA","Trimestral","Julho a Dezembro","TI"]
[null,"Seg. Social"]

{"sheet":"Alerta","index":3,"n_rows":6,"n_cols":2,"rows_kept":6,"cut":false,"hidden":false,"merged":[[0,1,0,6],[1,1,1,6],[5,1,5,6]]}
[]
[null,"Simulador"]
[]
[]
[]
[null,"Para utilizar o simulador deverá ativar as macros."]